bitfinex/quotes_ETHUSD_20241009
["timestamp","ask_amount","ask_price","bid_price","bid_amount"]
[1728437344330,3.73549698,2459.0,2458.5,4.06746]
[1728437344519,4.06661,2459.1,2458.5,4.06746]
[1728437344966,4.06661,2459.1,2458.4,3.0]
[1728437344967,4.06672,2459.0,2458.4,3.0]
[1728437345753,0.8187,2459.5,2459.1,4.06652]
[1728437345962,4.55419698,2460.0,2459.3,4.06605]
[1728437346257,5.13793851,2460.0,2459.5,4.06582]
[1728437346832,5.13793851,2460.0,2459.4,7.06599]
[1728437347144,5.13793851,2460.0,2459.4,3.0]
[1728437347350,3.73549698,2459.6,2459.2,3.0]
[1728437347551,3.73549698,2459.8,2459.4,3.0]
[1728437347879,0.8187,2460.0,2459.4,7.06589]
[1728437347880,4.55419698,2460.0,2459.4,7.06589]
[1728437348024,0.8187,2460.0,2459.7,4.06551]
[1728437348565,0.8187,2460.0,2459.7,8.13102]
[1728437348866,0.8187,2460.0,2459.7,4.06551]
[1728437349065,0.1224903,2460.2,2459.7,4.878548]
[1728437349278,0.1224903,2460.2,2459.9,4.06509]
[1728437350073,0.1224903,2460.2,2459.9,8.13018]
[1728437350279,0.1224903,2460.2,2459.9,4.06509]
[1728437352266,0.1224903,2460.2,2460.1,4.06487]
[1728437352675,0.1224903,2460.2,2460.1,7.61487]
[1728437352975,0.1224903,2460.2,2460.1,13.93756716]
[1728437353339,0.1224903,2460.2,2460.1,16.01011096]
[1728437353541,0.1224903,2460.2,2460.1,13.93756716]
[1728437353964,0.1224903,2460.2,2460.1,13.38756716]
[1728437354372,3.73549698,2461.4,2460.9,4.06354]
[1728437354583,4.10904668,2461.4,2460.9,4.06354]
[1728437354849,4.10904668,2461.4,2461.1,4.06318]
[1728437355249,4.10904668,2461.4,2460.9,4.06354]
[1728437355466,0.8036,2461.3,2460.7,4.06381]
[1728437355667,0.8036,2461.3,2460.9,4.06354]
[1728437355910,0.8036,2461.3,2460.9,4.06344]
[1728437356383,0.8036,2461.3,2461.1,4.06321]
[1728437356761,0.8036,2461.3,2461.2,4.06305]
[1728437357070,0.8147,2461.7,2461.3,4.06275]
[1728437357271,2.01383945,2461.7,2461.3,4.06275]
[1728437357605,0.8147,2461.7,2461.4,4.0626]
[1728437358788,0.8147,2461.7,2461.3,4.06275]
[1728437359086,0.8147,2461.7,2461.3,8.12554]
[1728437359587,0.8147,2461.7,2461.3,4.06275]
[1728437359885,0.8147,2461.7,2461.2,4.06299]
[1728437360185,1.35330945,2461.7,2461.3,4.06287]
[1728437360443,1.35330945,2461.7,2460.6,0.8059]
[1728437360444,4.57139454,2461.5,2460.6,0.8059]
[1728437360592,0.766,2461.4,2460.6,4.06403]
[1728437360889,0.766,2461.4,2460.2,0.8059]
[1728437360890,4.57139454,2461.2,2460.8,4.06369]
[1728437361062,5.10513399,2461.2,2460.8,4.06369]
[1728437361453,5.10513399,2461.2,2460.7,4.06388]
[1728437361676,0.53373945,2461.2,2460.8,4.06367]
[1728437361876,0.766,2461.4,2460.7,4.06388]
[1728437362892,0.766,2461.4,2460.7,8.12765]
[1728437363062,0.766,2461.4,2460.7,4.06377]
[1728437363391,4.57139454,2461.2,2460.5,4.06409]
[1728437363594,1.68083145,2461.1,2460.5,4.06409]
[1728437363758,4.92666145,2461.1,2460.4,4.06434]
[1728437363959,0.8174,2461.0,2460.4,4.06434]
[1728437364396,0.8174,2461.0,2460.7,4.06372]
[1728437364591,0.8174,2461.0,2460.7,8.12746]
[1728437364792,0.8174,2461.0,2460.8,4.06369]
[1728437365009,0.8174,2461.0,2460.7,4.06372]
[1728437365189,0.8174,2461.0,2460.9,4.06355]
[1728437369168,0.7931,2461.4,2461.1,4.06311]
[1728437369373,0.7931,2461.4,2461.2,4.06291]
[1728437370069,0.7931,2461.4,2461.1,4.06311]
[1728437370287,0.7931,2461.4,2461.2,4.06303]
[1728437370513,0.7931,2461.4,2461.1,4.06311]
[1728437370813,0.7931,2461.4,2461.2,4.06305]
[1728437370972,0.7931,2461.4,2461.1,4.06311]
[1728437372198,0.7931,2461.4,2461.0,4.06334]
[1728437372406,0.53644945,2461.3,2461.1,4.06318]
[1728437372603,0.7931,2461.4,2461.1,4.06318]
[1728437372804,0.7931,2461.4,2460.9,4.06344]
[1728437372997,0.7931,2461.4,2461.0,4.06336]
[1728437373192,0.7931,2461.4,2460.9,4.06344]
[1728437373411,0.94271545,2461.3,2461.1,4.06311]
[1728437373717,0.7931,2461.4,2461.1,8.1262]
[1728437373920,0.7931,2461.4,2460.9,4.06346]
[1728437374123,0.7931,2461.4,2460.8,4.06371]
[1728437374422,0.7931,2461.4,2460.9,4.06351]
[1728437374786,4.85585,2461.4,2460.7,4.06387]
[1728437375120,0.7708,2461.2,2460.8,4.06369]
[1728437376431,3.71561054,2461.1,2460.8,4.06369]
[1728437376987,0.7708,2461.2,2460.0,4.06493]
[1728437376988,0.7584,2460.7,2460.0,4.06493]
[1728437377196,0.7584,2460.2,2460.0,4.06493]
[1728437378733,0.7964,2460.4,2460.1,4.06487]
[1728437379028,0.7964,2460.4,2460.1,4.06478]
[1728437379632,0.7964,2460.4,2459.9,4.0651]
[1728437379633,0.7964,2460.4,2460.3,4.06454]
[1728437379819,0.7964,2460.4,2460.2,4.06469]
[1728437380430,3.71561054,2460.3,2460.0,4.06491]
[1728437381009,3.71561054,2460.3,2459.8,8.13055]
[1728437381192,3.71561054,2460.3,2459.8,4.06525]
[1728437381607,3.71561054,2460.3,2459.9,4.06517]
[1728437382908,0.7964,2460.4,2460.0,4.06494]
[1728437383142,0.7964,2460.4,2460.2,4.06466]
[1728437383623,0.7964,2460.4,2460.1,4.06481]
[1728437384395,0.7964,2460.4,2460.0,4.06498]
[1728437384837,0.7964,2460.4,2460.0,8.12991]
[1728437385046,0.7964,2460.4,2460.0,4.06493]
[1728437385226,0.7964,2460.4,2460.1,4.06476]
[1728437388334,0.7964,2460.4,2460.2,4.0647]
[1728437389456,0.7964,2460.4,2460.2,4.06459]
[1728437389629,0.7964,2460.4,2460.2,8.12918]
[1728437389828,0.7964,2460.4,2460.2,8.1292]
[1728437390129,0.7964,2460.4,2460.2,4.06459]
[1728437390946,0.7964,2460.4,2460.2,8.12919]
[1728437391414,0.7964,2460.4,2460.2,4.06459]
[1728437391810,4.06312,2461.2,2460.4,4.06437]
[1728437392007,0.7803,2460.9,2460.6,4.06391]
[1728437393546,3.71561054,2460.8,2460.6,4.06391]
[1728437395840,0.7803,2460.9,2460.6,4.06391]
[1728437397719,3.71561054,2461.0,2460.7,4.06387]
[1728437397914,3.71561054,2461.0,2460.7,4.470257]
[1728437398148,3.71561054,2461.0,2460.8,4.06365]
[1728437398345,3.71561054,2461.0,2460.9,4.06355]
[1728437398615,4.52281054,2461.2,2460.9,4.06355]
[1728437400455,3.71561054,2461.2,2460.9,4.06355]
[1728437400672,4.51261054,2461.4,2460.9,4.06355]
[1728437401268,4.51261054,2461.6,2461.1,4.06312]
[1728437401422,4.51261054,2461.2,2460.7,1.196787]
[1728437401775,3.71561054,2460.8,2460.5,4.06411]
[1728437402368,4.46781054,2460.8,2460.3,4.06445]
[1728437402740,4.46781054,2460.8,2460.4,4.06429]
[1728437402741,0.7522,2460.8,2460.4,4.06429]
[1728437403171,0.7522,2460.8,2460.4,4.06427]
[1728437403374,0.7522,2460.8,2460.5,4.0642]
[1728437403842,0.7522,2460.8,2460.4,4.06427]
[1728437404481,1.60532205,2460.8,2460.2,4.87806]
[1728437404678,5.66904205,2460.8,2460.2,4.06456]
[1728437404972,3.71561054,2460.4,2460.1,4.06482]
[1728437405273,4.50841054,2460.6,2460.1,4.0648]
[1728437405836,0.7928,2460.6,2460.2,4.06468]
[1728437406142,0.7928,2460.9,2460.5,4.0641]
[1728437406371,0.7928,2460.9,2460.7,4.06379]
[1728437408437,3.71561054,2461.2,2460.7,4.06381]
[1728437408634,8.23256159,2461.2,2460.7,4.06381]
[1728437408836,3.71561054,2461.0,2460.7,4.06381]
[1728437409037,2.0,2461.2,2461.0,4.06324]
[1728437409547,2.0,2461.2,2461.1,4.06322]
[1728437409767,2.0,2461.2,2461.0,4.06324]
[1728437410772,2.0,2461.2,2460.8,8.95504]
[1728437410968,2.0,2461.2,2461.0,4.06327]
[1728437411934,2.0,2461.2,2460.8,4.959114]
[1728437412131,5.71561054,2461.2,2460.6,0.8179]
[1728437412343,0.766,2461.1,2460.3,0.8077]
[1728437412579,0.766,2461.1,2460.6,4.06394]
[1728437412765,0.766,2461.1,2460.0,0.8077]
[1728437412766,3.71561054,2460.8,2460.0,0.8077]
[1728437412934,3.71561054,2461.0,2460.0,0.8077]
[1728437413174,7.77902054,2461.0,2460.4,8.12874]
[1728437413576,3.71561054,2460.8,2460.2,4.06468]
[1728437413782,0.8082,2460.7,2460.2,4.06468]
[1728437413982,4.87209,2460.7,2460.2,4.06468]
[1728437414212,0.8082,2460.3,2459.7,0.7641]
[1728437414413,3.71561054,2460.1,2459.6,8.13122]
[1728437414625,3.71561054,2460.1,2459.6,8.13118]
[1728437414995,3.71561054,2460.1,2459.7,4.06553]
[1728437415819,4.52381054,2460.3,2459.7,4.06553]
[1728437416119,4.52381054,2460.3,2459.9,4.06514]
[1728437416830,4.52381054,2460.3,2459.7,8.13096]
[1728437417139,8.58838054,2460.3,2459.8,0.813096]
[1728437417440,4.06481,2460.2,2459.6,4.06568]
[1728437417942,4.06514,2460.0,2459.5,4.06579]
[1728437418100,3.71561054,2459.9,2459.3,4.06605]
[1728437418432,0.7922,2460.1,2459.8,4.06535]
[1728437418931,0.7922,2460.1,2459.7,4.06539]
[1728437419295,0.7922,2460.1,2459.6,0.7746]
[1728437419500,4.50781054,2460.1,2459.6,4.84029]
[1728437419734,4.50781054,2460.1,2459.6,0.9312635]
[1728437419895,8.57276054,2460.1,2459.5,4.06574]
[1728437420499,4.50781054,2460.1,2459.5,4.06574]
[1728437420700,4.50781054,2460.1,2459.4,0.406605]
[1728437420701,4.06505,2460.0,2459.4,0.406605]
[1728437420939,0.8279,2459.7,2459.1,4.06644]
[1728437421242,3.71561054,2459.6,2459.1,4.06644]
[1728437422438,4.89355,2459.7,2459.3,4.06619]
[1728437422439,0.8279,2459.7,2459.3,4.06619]
[1728437422597,7.78070054,2460.0,2459.4,4.06594]
[1728437422803,8.58190054,2460.0,2459.4,4.06594]
[1728437423203,12.64706054,2460.0,2459.3,4.89539]
[1728437423520,7.78102054,2459.8,2459.2,4.06634]
[1728437423727,7.78102054,2459.8,2459.1,4.06642]
[1728437423926,10.58860959,2460.0,2459.3,4.06608]
[1728437424126,10.58860959,2460.0,2459.3,8.13217]
[1728437424127,8.58194054,2460.0,2459.3,8.13217]
[1728437424298,8.58194054,2460.0,2459.3,4.06608]
[1728437424504,8.58194054,2460.0,2459.4,4.06593]
[1728437424916,4.06521,2459.9,2459.3,4.06608]
[1728437425238,7.78098054,2459.8,2459.1,8.13283]
[1728437425544,7.78098054,2459.8,2459.3,4.06618]
[1728437425747,3.71561054,2459.8,2459.3,4.06607]
[1728437426257,3.71561054,2459.8,2459.1,4.958073]
[1728437426258,7.78103054,2459.8,2459.1,4.958053]
[1728437426431,7.78103054,2459.8,2459.2,0.5741653]
[1728437426636,8.58187054,2460.0,2459.2,0.5741653]
[1728437426932,0.8033,2460.3,2459.9,4.0652]
[1728437427638,4.06417,2460.6,2459.7,4.06553]
[1728437427639,4.53381054,2460.6,2460.2,4.0646]
[1728437427819,0.8182,2460.6,2460.2,4.47106]
[1728437428016,4.53381054,2460.6,2460.2,4.47106]
[1728437428224,0.8182,2460.6,2460.2,4.47106]
[1728437428532,0.8182,2460.6,2460.2,0.40646]
[1728437428734,4.53381054,2460.6,2460.2,0.40646]
[1728437431419,8.59787054,2460.6,2460.2,0.40646]
[1728437431660,4.53381054,2460.6,2460.0,4.06488]
[1728437431857,4.53381054,2460.6,2460.1,4.06482]
[1728437432063,4.53381054,2460.6,2459.8,0.7615]
[1728437432064,3.71561054,2460.4,2459.8,4.82677]
[1728437432235,7.78008054,2460.4,2459.8,4.82677]
[1728437432564,7.78008054,2460.4,2459.9,0.482677]
[1728437432933,4.53381054,2460.6,2459.9,0.482677]
[1728437433260,0.8182,2460.6,2460.3,4.06453]
[1728437433559,0.8182,2460.6,2460.2,4.06458]
[1728437434727,3.71561054,2460.8,2460.3,0.8053]
[1728437434925,3.71561054,2460.8,2459.8,7.0653]
[1728437434926,4.064,2460.7,2460.0,8.12988]
[1728437435126,0.812,2460.5,2459.8,11.93588]
[1728437435466,7.78009054,2460.4,2459.8,4.06522]
[1728437436021,4.06457,2460.3,2459.6,4.88628]
[1728437436246,4.06457,2460.3,2459.7,4.06552]
[1728437436464,4.8763,2460.5,2460.0,4.06501]
[1728437437064,0.812,2460.5,2460.0,4.06501]
[1728437437364,0.812,2460.5,2460.1,4.06475]
[1728437437528,4.82452,2460.8,2460.1,4.06486]
[1728437437859,4.82452,2460.8,2460.1,4.06474]
[1728437438026,4.82452,2460.8,2460.2,4.0646]
[1728437438532,8.54013054,2460.8,2460.2,4.0646]
[1728437438727,4.47641054,2460.8,2460.2,0.9360241]
[1728437438930,0.7608,2460.8,2460.6,4.06391]
[1728437439238,0.7608,2460.8,2460.4,4.06427]
[1728437439453,0.7608,2460.8,2460.4,8.12852]
[1728437439637,0.7608,2460.8,2460.4,9.03497441]
[1728437439970,0.7608,2460.8,2460.5,4.0642]
[1728437440168,3.71561054,2461.0,2460.6,4.06391]
[1728437440380,0.7799,2461.1,2460.5,0.8013]
[1728437440548,0.7799,2461.1,2461.0,4.06338]
[1728437440752,2.0,2461.2,2461.0,4.06338]
[1728437441275,2.0,2461.2,2460.8,4.0636]
[1728437441447,5.71561054,2461.2,2460.8,8.1272]
[1728437441647,5.71561054,2461.2,2460.8,4.0636]
[1728437442034,5.71561054,2461.2,2460.8,8.12721]
[1728437442234,5.71561054,2461.2,2460.8,4.0636]
[1728437442858,2.0,2461.2,2460.9,0.40636]
[1728437443035,2.0,2461.2,2460.9,4.46976]
[1728437443242,2.0,2461.2,2461.1,4.06322]
[1728437443440,2.0,2461.2,2461.0,4.85036]
[1728437443641,2.0,2461.2,2461.1,4.06322]
[1728437444281,2.0,2461.2,2461.1,4.995214]
[1728437445554,4.06099,2462.5,2461.2,3.7731]
[1728437445755,0.7898,2462.6,2462.2,4.06136]
[1728437445985,4.05994,2463.1,2462.4,4.06104]
[1728437446282,7.77602054,2462.8,2462.2,4.84939]
[1728437446587,0.8730903,2462.7,2462.2,0.7881]
[1728437446757,0.6230903,2462.7,2462.2,4.8494]
[1728437447188,0.6809903,2462.7,2462.2,4.8494]
[1728437447391,1.52089538,2462.7,2462.2,4.0613]
[1728437447598,3.71561054,2462.4,2461.5,1.1589]
[1728437447799,4.06217,2461.8,2461.2,4.06304]
[1728437448148,4.06148,2462.2,2461.6,4.06228]
[1728437448451,4.06158,2462.1,2461.4,4.06265]
[1728437448650,4.06158,2462.1,2461.3,4.06281]
[1728437448651,4.0619,2461.9,2461.3,4.06281]
[1728437448898,4.06187,2462.0,2461.3,4.06281]
[1728437449079,0.812345,2461.9,2461.2,7.81373]
[1728437449268,4.06165,2462.1,2461.2,7.81373]
[1728437449450,4.06175,2462.0,2461.4,4.06271]
[1728437449657,4.06207,2461.8,2461.2,4.81373]
[1728437449857,0.7834,2461.7,2461.0,4.06331]
[1728437450085,4.84571,2461.7,2461.1,0.406331]
[1728437450270,4.84571,2461.7,2461.1,4.469481]
[1728437450799,4.06209,2461.8,2461.2,4.06294]
[1728437451852,4.8284,2462.3,2461.3,0.8255]
[1728437452055,4.06143,2462.2,2461.5,4.06243]
[1728437452857,4.06143,2462.2,2461.5,8.12489]
[1728437453052,0.767,2462.3,2461.7,4.06218]
[1728437453284,0.767,2462.3,2461.7,8.12431]
[1728437453596,4.06115,2462.4,2461.8,0.8255]
[1728437453956,4.06126,2462.3,2461.8,0.8255]
[1728437454201,4.06147,2462.2,2461.8,0.8255]
[1728437454411,4.06147,2462.2,2461.5,4.06243]
[1728437454608,8.12303,2462.2,2461.6,0.8255]
[1728437454910,4.873773,2462.2,2461.6,0.8255]
[1728437455080,0.767,2462.5,2461.4,3.0]
[1728437455081,4.06189,2462.0,2461.4,3.0]
[1728437455497,8.12378,2462.0,2461.4,3.0]
[1728437455695,4.06187,2462.0,2461.4,3.0]
[1728437455899,4.06198,2461.9,2461.4,3.0]
[1728437456267,4.06187,2462.0,2461.4,3.0]
[1728437456672,4.06191,2461.9,2461.4,3.0]
[1728437456913,0.8023,2462.1,2461.4,0.786341]
[1728437457201,0.8235,2462.5,2461.3,0.7777]
[1728437457420,0.8235,2462.5,2461.1,0.406331]
[1728437457421,4.06088,2462.6,2461.9,4.8395]
[1728437457597,4.06088,2462.6,2461.9,5.729645]
[1728437457796,4.06088,2462.6,2461.9,4.8395]
[1728437459577,8.12176,2462.6,2461.9,0.7777]
[1728437460110,4.06088,2462.6,2461.9,4.83959]
[1728437460317,4.878846,2462.6,2461.9,4.83959]
[1728437460491,4.878846,2462.6,2462.0,4.06167]
[1728437461405,0.0579,2462.7,2461.9,0.7777]
[1728437461577,0.0579,2462.7,2461.4,9.06264]
[1728437461578,0.0579,2462.7,2462.6,7.85504]
[1728437461771,0.0579,2462.7,2462.4,4.06093]
[1728437461982,0.0579,2462.7,2462.5,4.06081]
[1728437462379,0.0579,2462.7,2462.4,4.06093]
[1728437462714,0.0579,2462.7,2462.6,4.06074]
[1728437463392,0.0579,2462.7,2462.6,7.85504]
[1728437465531,0.0579,2462.7,2462.6,4.85504]
[1728437465697,4.11851,2462.7,2462.1,4.06146]
[1728437466330,4.11851,2462.7,2461.9,4.85535]
[1728437466476,4.608491,2462.7,2461.9,4.85527]
[1728437466680,4.608491,2462.7,2462.1,4.06152]
[1728437467425,4.608491,2462.7,2462.1,4.06147]
[1728437467636,0.0579,2462.7,2461.9,0.7935]
[1728437467782,0.0579,2462.7,2462.4,0.7993]
[1728437467986,0.0579,2462.7,2462.5,4.0609]
[1728437468206,0.0579,2462.7,2462.5,9.013943]
[1728437468408,0.0579,2462.7,2462.6,4.06074]
[1728437468621,0.0579,2462.7,2462.5,4.952943]
[1728437468980,0.0579,2462.7,2462.6,4.06074]
[1728437470128,0.0579,2462.7,2462.5,4.952943]
[1728437470480,0.0579,2462.7,2462.3,4.06117]
[1728437470724,0.0579,2462.7,2462.6,4.06074]
[1728437471724,0.0579,2462.7,2462.5,4.0609]
[1728437472796,0.0579,2462.7,2462.5,4.06081]
[1728437473830,0.0579,2462.7,2462.6,4.06074]
[1728437474027,0.0579,2462.7,2462.3,4.06114]
[1728437474823,0.0579,2462.7,2462.1,4.06151]
[1728437474824,4.1185,2462.7,2462.1,4.06151]
[1728437475127,4.06074,2462.6,2461.9,4.8875]
[1728437475350,4.56871118,2462.6,2461.5,4.88806]
[1728437475631,4.56871118,2462.6,2461.5,8.12491]
[1728437475632,4.06167,2462.1,2461.5,8.12491]
[1728437475799,4.06167,2462.1,2461.6,4.06237]
[1728437476202,0.7833,2462.5,2461.2,0.8256]
[1728437476203,8.90534,2462.5,2461.7,4.06213]
[1728437476530,4.84429,2462.5,2461.8,4.06203]
[1728437476726,4.06121,2462.4,2461.7,8.12425]
[1728437476878,4.84429,2462.5,2461.7,8.12425]
[1728437476879,8.90536,2462.5,2461.8,4.06206]
[1728437477085,4.06109,2462.4,2461.8,4.06206]
[1728437477387,4.84429,2462.5,2461.9,4.0618]
[1728437478026,4.06081,2462.6,2462.1,4.06152]
[1728437479181,4.06081,2462.6,2461.9,4.06177]
[1728437479380,4.06081,2462.6,2461.9,4.6254495]
[1728437480017,4.06081,2462.6,2462.0,4.0617]
[1728437480227,4.06081,2462.6,2461.9,4.6254495]
[1728437480523,4.06081,2462.6,2462.0,4.06171]
[1728437480830,0.8265,2462.3,2461.7,5.637085]
[1728437481031,0.8265,2462.3,2461.9,4.0618]
[1728437482026,0.7941,2462.6,2462.1,4.0614]
[1728437482200,0.7941,2462.6,2462.2,4.7674]
[1728437483200,0.7941,2462.6,2462.2,0.70614]
[1728437483393,4.85485,2462.6,2462.0,4.06172]
[1728437483790,4.85485,2462.6,2462.1,4.06153]
[1728437484189,0.0579,2462.7,2462.2,4.89161]
[1728437484661,0.0579,2462.7,2462.5,4.0609]
[1728437484833,0.0579,2462.7,2462.2,0.8303]
[1728437484834,0.0579,2462.7,2462.6,0.40609]
[1728437485030,0.0579,2462.7,2462.4,4.06107]
[1728437485262,0.0579,2462.7,2462.6,4.06074]
[1728437485446,0.0579,2462.7,2462.4,4.06103]
[1728437485621,0.0579,2462.7,2462.4,4.06096]
[1728437486232,0.0579,2462.7,2462.6,4.06074]
[1728437486433,0.0579,2462.7,2462.6,4.87291]
[1728437486641,0.0579,2462.7,2462.6,0.81217]
[1728437487225,0.0579,2462.7,2462.6,4.87291]
[1728437487454,0.0579,2462.7,2462.6,5.68501]
[1728437488642,0.0579,2462.7,2462.6,0.81217]
[1728437488842,0.0579,2462.7,2462.3,4.06118]
[1728437489164,0.0579,2462.7,2462.3,8.12232]
[1728437489364,0.0579,2462.7,2462.5,4.06088]
[1728437489566,0.0579,2462.7,2462.6,4.466828]
[1728437489724,0.0579,2462.7,2462.6,0.406088]
[1728437490767,0.0579,2462.7,2462.1,3.0]
[1728437490929,0.0579,2462.7,2462.5,4.06075]
[1728437492653,0.0579,2462.7,2462.6,0.8129]
[1728437492864,0.0579,2462.7,2462.3,4.06109]
[1728437493029,0.0579,2462.7,2462.4,0.406109]
[1728437493233,0.0579,2462.7,2462.3,4.06109]
[1728437493770,0.0579,2462.7,2462.2,4.06138]
[1728437493968,0.0579,2462.7,2462.3,4.06123]
[1728437494133,0.0579,2462.7,2462.1,8.93579]
[1728437494329,4.11849,2462.7,2462.2,4.954979]
[1728437494567,0.0579,2462.7,2462.2,4.954979]
[1728437495084,0.0579,2462.7,2462.3,4.06114]
[1728437495430,0.0579,2462.7,2462.3,8.12228]
[1728437495742,0.0579,2462.7,2462.4,4.93887689]
[1728437495944,0.0579,2462.7,2462.5,4.06088]
[1728437496131,0.0579,2462.7,2462.5,8.12176]
[1728437496333,0.0579,2462.7,2462.5,4.06088]
[1728437496527,0.0579,2462.7,2462.6,4.06074]
[1728437496733,0.0579,2462.7,2462.6,0.89995169]
[1728437496974,0.0579,2462.7,2462.5,4.06082]
[1728437497278,0.0579,2462.7,2462.3,4.85794]
[1728437497490,0.0579,2462.7,2462.0,3.804]
[1728437497491,0.8132,2462.6,2462.0,3.804]
[1728437497791,0.8132,2462.6,2462.0,0.786578]
[1728437497792,4.061,2462.5,2462.0,0.786578]
[1728437497940,4.06118,2462.4,2461.8,4.06196]
[1728437498439,4.061,2462.5,2461.7,4.06208]
[1728437498643,4.06126,2462.3,2461.7,4.06208]
[1728437499080,4.86117,2462.2,2461.6,4.06238]
[1728437499586,4.86067,2462.5,2461.8,0.7934]
[1728437499742,4.86067,2462.5,2462.0,4.06171]
[1728437499945,4.86067,2462.5,2461.8,0.7934]
[1728437500145,4.86067,2462.5,2461.9,4.06177]
[1728437500845,0.0579,2462.7,2461.5,4.8559]
[1728437500846,0.7997,2462.1,2461.5,4.8559]
[1728437501041,0.7997,2462.1,2461.5,4.06246]
[1728437501283,0.7997,2462.1,2461.7,4.06211]
[1728437501484,0.7997,2462.1,2461.7,8.12422]
[1728437501652,4.83018,2462.5,2461.8,0.8022]
[1728437501856,0.7692,2462.5,2462.1,4.06154]
[1728437503387,0.7692,2462.5,2462.2,4.06137]
[1728437503677,0.7692,2462.5,2462.1,4.467694]
[1728437503884,0.7692,2462.5,2462.1,8.529174]
[1728437504047,0.7692,2462.5,2462.1,0.406154]
[1728437504487,0.7692,2462.5,2461.9,4.06179]
[1728437505050,0.7692,2462.5,2462.0,4.06171]
[1728437505487,4.32267282,2462.7,2462.1,4.06152]
[1728437505488,0.26199282,2462.7,2462.1,4.06152]
[1728437505687,0.26199282,2462.7,2462.4,4.06096]
[1728437505896,0.26199282,2462.7,2462.6,4.06074]
[1728437506066,0.0579,2462.7,2462.6,0.892695]
[1728437506584,0.0579,2462.7,2462.6,4.953435]
[1728437508063,0.0579,2462.7,2462.6,0.892695]
[1728437508269,0.0579,2462.7,2462.5,4.0608]
[1728437508465,0.0579,2462.7,2462.3,8.12233]
[1728437508665,0.0579,2462.7,2462.6,4.06074]
[1728437516021,0.8168,2464.1,2463.4,0.7563]
[1728437516231,0.8168,2464.1,2463.8,4.05868]
[1728437516439,0.8168,2464.1,2463.9,4.05859]
[1728437516586,0.8168,2464.1,2463.9,4.05851]
[1728437516787,0.8168,2464.7,2464.0,4.05844]
[1728437517027,0.8168,2464.7,2464.1,0.405844]
[1728437517179,0.1224903,2465.1,2464.1,0.405844]
[1728437517180,0.9392903,2465.1,2464.6,4.05729]
[1728437517383,0.9392903,2465.1,2464.3,0.7563]
[1728437517636,0.9392903,2465.1,2464.6,4.05732]
[1728437518530,0.9392903,2465.1,2464.8,4.05711]
[1728437518696,0.9392903,2465.1,2464.6,4.05732]
[1728437519029,0.9392903,2465.1,2464.4,7.05769]
[1728437519386,0.9392903,2465.1,2464.4,4.05769]
[1728437519387,0.49957503,2465.0,2464.4,4.05769]
[1728437520192,0.49957503,2465.0,2464.2,4.05805]
[1728437520528,0.9392903,2465.1,2464.4,4.05775]
[1728437520727,4.05694,2465.0,2464.2,4.05805]
[1728437521130,4.05694,2465.0,2464.0,0.7945]
[1728437521131,0.9392903,2465.1,2464.4,4.05763]
[1728437521299,0.9392903,2465.1,2464.1,0.55]
[1728437521821,1.43934933,2465.1,2464.4,8.11542]
[1728437522052,5.49598933,2465.1,2464.4,8.11535]
[1728437522263,5.49598933,2465.1,2464.2,4.05805]
[1728437522264,4.05698,2464.9,2464.2,4.05805]
[1728437522415,0.405698,2464.8,2464.2,4.05805]
[1728437522765,0.405698,2464.8,2464.4,4.05777]
[1728437522915,1.43934933,2465.1,2464.5,4.05759]
[1728437523115,5.49597933,2465.1,2464.4,4.05767]
[1728437524370,5.49597933,2465.1,2464.2,4.0581]
[1728437524371,0.7975,2464.8,2464.2,4.0581]
[1728437524922,4.85463,2464.8,2464.1,3.0]
[1728437525222,0.94109779,2464.7,2464.1,7.05823]
[1728437525442,0.94109779,2464.7,2464.0,4.85285]
[1728437525443,4.99852779,2464.7,2464.0,4.05835]
[1728437526354,4.99851779,2464.7,2464.0,4.05829]
[1728437526932,0.7698,2464.5,2463.8,4.05867]
[1728437527147,0.7698,2464.5,2463.3,0.407]
[1728437527148,4.05811,2464.2,2463.4,4.83663]
[1728437527359,4.89041,2464.1,2463.4,4.05933]
[1728437527862,4.89041,2464.1,2463.4,8.11866]
[1728437528169,4.05847,2464.0,2463.4,4.05933]
[1728437529573,0.7549,2464.3,2463.8,4.0586]
[1728437529927,0.7549,2464.3,2464.0,8.11674]
[1728437530135,4.05748,2464.6,2463.2,0.794]
[1728437530136,0.7565,2464.6,2463.8,0.8272]
[1728437530360,4.81405,2464.6,2464.0,4.05842]
[1728437530671,6.15680879,2464.6,2463.9,8.11699]
[1728437531085,4.05764,2464.5,2463.9,4.05848]
[1728437531387,8.61398789,2464.5,2463.9,4.05848]
[1728437531669,4.55634789,2464.5,2463.9,4.05848]
[1728437531838,4.55634789,2464.5,2464.0,4.05843]
[1728437532462,4.55634789,2464.5,2463.9,4.05848]
[1728437532778,0.7565,2464.6,2464.0,0.8272]
[1728437533134,5.31284789,2464.6,2464.0,4.05831]
[1728437533338,5.31284789,2464.6,2464.2,4.058]
[1728437533780,5.31284789,2464.6,2464.2,8.11601]
[1728437533976,0.7565,2464.6,2464.2,4.058]
[1728437534279,0.7565,2464.6,2464.3,4.05784]
[1728437534483,0.7565,2464.6,2464.3,4.05792]
[1728437534679,0.7565,2464.6,2464.4,4.05777]
[1728437535006,0.7565,2464.6,2464.2,8.116]
[1728437535204,0.7565,2464.6,2464.2,4.058]
[1728437535653,0.7565,2464.6,2464.0,4.05836]
[1728437535654,9.85166389,2464.6,2464.0,4.05836]
[1728437535854,13.42786789,2464.6,2464.0,4.05836]
[1728437536067,0.7998,2464.2,2463.6,4.05904]